bitfinex-derivatives/quotes_ETHF0:USTF0_20240925
["timestamp","ask_amount","ask_price","bid_price","bid_amount"]
[1727287304278,0.8185,2575.9,2575.6,0.38827]
[1727287304466,0.8185,2575.9,2575.5,3.59608]
[1727287305277,0.8185,2575.9,2575.6,0.38827]
[1727287305873,0.8185,2575.9,2575.5,3.2078]
[1727287305874,0.8185,2575.9,2575.7,0.38825]
[1727287306066,0.3882,2576.2,2575.7,0.38825]
[1727287306269,0.3882,2576.1,2575.7,0.38825]
[1727287306475,0.38816,2576.4,2575.7,3.73]
[1727287306676,0.09,2576.7,2576.2,3.2078]
[1727287306878,3.5959,2576.8,2576.3,0.38816]
[1727287307271,3.2078,2576.8,2576.4,0.38815]
[1727287307473,3.2078,2576.8,2576.2,3.2078]
[1727287307474,1.23727,2577.0,2576.5,0.38813]
[1727287307672,1.23727,2577.0,2576.2,4.0461]
[1727287307673,0.38808,2576.9,2576.2,4.0461]
[1727287307868,0.8492,2577.0,2576.6,0.38812]
[1727287308073,0.8492,2577.0,2576.6,3.59592]
[1727287308376,0.8492,2577.0,2576.6,3.2078]
[1727287308575,0.8492,2577.0,2576.6,3.59591]
[1727287308776,0.8492,2577.0,2576.6,3.2078]
[1727287308777,1.23726,2577.0,2576.6,3.2078]
[1727287309484,1.23726,2577.0,2576.5,0.38813]
[1727287309979,0.38808,2576.9,2576.5,0.38813]
[1727287310883,3.2078,2576.9,2576.3,3.2078]
[1727287311181,0.3881,2576.8,2576.4,0.38815]
[1727287312777,0.8492,2577.0,2576.3,3.2078]
[1727287312983,0.3881,2576.8,2576.5,0.38814]
[1727287313176,0.3881,2576.8,2576.3,3.2078]
[1727287313586,0.3881,2576.8,2576.5,0.38814]
[1727287313784,0.3881,2576.8,2576.4,0.38814]
[1727287314588,0.38811,2576.7,2576.4,0.38814]
[1727287314783,4.057,2577.0,2576.4,0.38815]
[1727287314784,0.3881,2576.8,2576.4,0.38815]
[1727287314990,0.3881,2576.8,2576.3,3.2078]
[1727287314991,0.38812,2576.7,2576.3,3.59596]
[1727287315688,0.38812,2576.7,2576.3,0.38816]
[1727287316087,0.38812,2576.7,2576.2,0.8383]
[1727287316282,3.2078,2576.7,2576.2,1.22648]
[1727287316582,0.38811,2576.7,2576.4,0.38815]
[1727287317587,0.38813,2576.6,2576.3,3.59596]
[1727287317785,4.057,2577.0,2576.3,3.2078]
[1727287318093,0.38811,2576.7,2576.4,0.38815]
[1727287318682,3.2078,2576.6,2576.2,0.8383]
[1727287318885,1.81939,2577.0,2576.2,0.8383]
[1727287318886,0.38814,2576.5,2576.2,0.8383]
[1727287319475,0.38814,2576.5,2576.2,1.22648]
[1727287320380,0.38815,2576.5,2576.2,1.22648]
[1727287320779,0.38815,2576.5,2576.2,0.8383]
[1727287320976,0.38815,2576.5,2576.2,1.22647]
[1727287321377,0.38816,2576.4,2576.2,0.8383]
[1727287321584,0.38815,2576.5,2576.2,1.22648]
[1727287322586,0.38813,2576.6,2576.3,0.38817]
[1727287322779,0.38813,2576.6,2576.4,0.38815]
[1727287322975,0.38812,2576.6,2576.4,0.38814]
[1727287323175,0.38812,2576.6,2576.3,0.38816]
[1727287323379,0.38814,2576.5,2576.2,4.0461]
[1727287323680,0.38816,2576.4,2576.2,0.8383]
[1727287323885,0.38815,2576.5,2576.2,1.22648]
[1727287324293,6.2378,2576.6,2576.2,1.22648]
[1727287325490,0.38816,2576.4,2576.2,1.22648]
[1727287325788,0.38817,2576.3,2576.2,0.8383]
[1727287325995,0.38818,2576.2,2576.1,0.8253]
[1727287326291,4.80837,2576.2,2575.8,0.38824]
[1727287326677,0.38822,2576.0,2575.7,0.38825]
[1727287327076,0.38822,2576.0,2575.8,0.38824]
[1727287327895,3.03,2575.9,2575.6,4.8109]
[1727287328082,3.03,2575.9,2575.6,3.9983]
[1727287328579,0.38826,2575.7,2575.6,3.9983]
[1727287328787,0.38825,2575.8,2575.6,3.9983]
[1727287328981,0.38824,2575.9,2575.7,0.38826]
[1727287329186,0.38824,2575.9,2575.6,0.7905]
[1727287329187,0.38826,2575.7,2575.6,0.7905]
[1727287329383,4.00065,2575.7,2575.0,0.38836]
[1727287329583,3.03,2575.3,2574.8,4.7059]
[1727287330184,3.41833,2575.3,2575.0,0.38836]
[1727287330386,0.38833,2575.3,2575.0,0.38836]
[1727287330584,0.38831,2575.4,2575.1,0.38835]
[1727287331285,3.2078,2575.4,2574.8,4.7059]
[1727287331484,4.17857,2575.4,2574.8,4.7059]
[1727287331685,4.17857,2575.4,2574.8,5.09428]
[1727287331885,0.38835,2575.1,2574.8,5.09428]
[1727287333382,0.38835,2575.1,2574.9,0.38838]
[1727287333585,0.38832,2575.3,2575.0,0.38835]
[1727287333782,4.8758,2575.6,2574.8,4.7059]
[1727287333998,0.3883,2575.5,2575.1,3.2078]
[1727287334297,3.2078,2575.7,2575.5,0.38828]
[1727287334594,0.38825,2575.8,2575.5,0.38828]
[1727287334794,1.87769392,2575.9,2575.5,0.748]
[1727287335090,3.2078,2576.0,2575.9,0.38823]
[1727287335291,4.8176,2576.1,2575.7,3.2078]
[1727287335482,4.078,2576.1,2575.7,3.2078]
[1727287335696,4.078,2576.1,2575.9,0.38822]
[1727287336191,4.4662,2576.1,2575.8,0.38824]
[1727287336399,0.38822,2576.0,2575.7,3.59605]
[1727287336900,4.46621,2576.1,2575.8,0.38824]
[1727287337195,4.46621,2576.1,2575.7,3.2078]
[1727287337196,4.078,2576.1,2575.7,3.59605]
[1727287337391,4.078,2576.1,2575.7,3.2078]
[1727287337392,0.38824,2575.9,2575.7,3.2078]
[1727287337594,0.38823,2575.9,2575.7,3.2078]
[1727287337797,0.38824,2575.8,2575.7,3.2078]
[1727287338097,0.38824,2575.9,2575.7,3.2078]
[1727287338888,4.4662,2576.1,2575.9,0.38823]
[1727287340295,4.4662,2576.1,2575.7,3.2078]
[1727287340296,0.3882,2576.1,2575.8,0.38823]
[1727287340797,4.17825,2576.3,2575.8,0.38823]
[1727287341100,0.38821,2576.1,2575.8,0.38823]
[1727287341495,0.38823,2575.9,2575.7,3.59605]
[1727287341799,3.2078,2576.0,2575.5,1.4861]
[1727287342014,3.2078,2576.0,2575.7,0.38825]
[1727287342015,3.59602,2576.0,2575.7,0.38825]
[1727287342394,3.59602,2576.0,2575.8,0.38824]
[1727287342595,3.59602,2576.0,2575.7,0.38825]
[1727287342900,0.38823,2575.9,2575.7,0.38825]
[1727287343213,3.2078,2576.0,2575.6,3.2078]
[1727287343402,3.2078,2576.4,2575.6,4.17848]
[1727287343702,0.38819,2576.2,2576.0,0.38821]
[1727287343904,0.38819,2576.2,2576.1,0.8034]
[1727287344405,0.38818,2576.3,2576.1,0.8034]
[1727287344898,3.2078,2576.4,2576.1,0.8034]
[1727287345091,3.59596,2576.4,2576.2,1.17707]
[1727287345599,3.59596,2576.4,2576.2,1.17708]
[1727287345808,0.38816,2576.4,2576.2,1.17708]
[1727287346393,0.38815,2576.5,2576.2,1.17708]
[1727287346604,0.38815,2576.4,2576.2,1.17708]
[1727287347489,0.38815,2576.5,2576.2,1.17708]
[1727287347804,5.56746392,2576.7,2576.2,1.17707]
[1727287347805,5.0483,2576.7,2576.2,1.17707]
[1727287348098,5.0483,2576.7,2576.3,0.38816]
[1727287348308,0.38813,2576.6,2576.3,0.38817]
[1727287348610,0.38814,2576.5,2576.3,0.38816]
[1727287349110,0.38815,2576.4,2576.2,1.17707]
[1727287350002,1.87761392,2576.4,2576.2,1.17707]
[1727287350301,1.48946392,2576.3,2576.2,1.17707]
[1727287350598,1.48946392,2576.3,2576.2,0.7889]
[1727287350796,0.38817,2576.3,2576.2,0.7889]
[1727287350992,1.98595189,2576.4,2576.2,0.7889]
[1727287350993,2.37411189,2576.4,2576.2,0.7889]
[1727287351303,2.37411189,2576.4,2576.2,1.17708]
[1727287352202,1.50265924,2576.3,2576.2,1.17708]
[1727287352909,1.50265924,2576.3,2576.2,4.20708]
[1727287353108,1.50265924,2576.3,2576.2,14.08868]
[1727287353109,0.28765924,2576.3,2576.2,14.08868]
[1727287353297,1.16,2576.8,2576.2,14.08868]
[1727287353298,2.37406189,2576.7,2576.5,0.38813]
[1727287353798,0.38811,2576.7,2576.5,0.38813]
[1727287354100,2.37406189,2576.7,2576.5,0.38813]
[1727287354498,0.38811,2576.7,2576.5,0.38813]
[1727287354902,2.37404189,2576.8,2576.6,0.38812]
[1727287355301,2.37404189,2576.8,2576.7,0.7994]
[1727287355810,1.98595189,2576.8,2576.7,1.18751]
[1727287356010,1.98595189,2576.8,2576.7,0.7994]
[1727287356211,1.98595189,2576.8,2576.7,1.18751]
[1727287356397,1.98595189,2576.9,2576.7,1.18751]
[1727287356602,2.37403189,2576.9,2576.7,1.18751]
[1727287356809,2.37404189,2576.8,2576.7,0.7994]
[1727287357406,1.98595189,2576.8,2576.6,0.8096]
[1727287357612,0.38811,2576.7,2576.6,0.8096]
[1727287358219,4.0002,2576.9,2576.3,0.7415]
[1727287358399,3.03,2576.7,2576.3,1.12967]
[1727287358605,0.38815,2576.5,2576.3,0.7415]
[1727287359901,0.38813,2576.6,2576.3,0.7415]
[1727287360097,0.38814,2576.5,2576.3,1.12966]
[1727287360302,0.38813,2576.6,2576.3,1.12966]
[1727287360714,0.38814,2576.5,2576.3,1.12966]
[1727287360902,0.38814,2576.5,2576.3,0.7415]
[1727287361403,3.2078,2576.5,2575.9,0.38822]
[1727287361605,4.00043,2576.3,2575.9,1.5368]
[1727287361803,0.38821,2576.0,2575.9,1.5368]
[1727287362011,0.38824,2575.9,2575.7,3.2078]
[1727287362200,3.03,2575.9,2575.4,1.5368]
[1727287362399,1.13795,2575.8,2575.6,0.38827]
[1727287363519,0.38826,2575.7,2575.6,0.38827]
[1727287364013,6.9124,2575.7,2574.9,4.4868]
[1727287364328,0.38831,2575.4,2575.3,0.38832]
[1727287364615,1.18908,2575.6,2575.4,0.3883]
[1727287365020,0.38829,2575.5,2575.3,0.38831]
[1727287365315,0.8008,2575.6,2575.2,3.2078]
[1727287365506,0.38829,2575.5,2575.3,0.38831]
[1727287365917,0.38829,2575.5,2575.2,3.59612]
[1727287366109,0.38829,2575.5,2575.3,0.38832]
[1727287366317,0.8008,2575.6,2575.3,3.03]
[1727287366617,0.38826,2575.7,2575.4,0.38829]
[1727287366813,0.38826,2575.7,2575.5,0.38828]
[1727287367510,0.7497,2575.8,2575.6,0.38827]
[1727287367709,1.13795,2575.8,2575.5,0.38828]
[1727287369114,1.13795,2575.8,2575.6,0.7805]
[1727287369814,1.13795,2575.8,2575.6,1.16877]
[1727287370222,0.7497,2575.8,2575.6,1.16877]
[1727287370923,1.13795,2575.8,2575.6,0.7805]
[1727287371221,1.13795,2575.8,2575.6,1.16877]
[1727287371423,1.13795,2575.8,2575.6,0.7805]
[1727287372118,0.38826,2575.7,2575.6,0.7805]
[1727287372320,0.7497,2575.8,2575.5,0.38828]
[1727287372511,1.13796,2575.8,2575.5,0.38828]
[1727287373524,1.13796,2575.8,2575.6,0.38827]
[1727287373825,1.13795,2575.8,2575.6,0.38827]
[1727287374015,1.13795,2575.8,2575.5,0.38828]
[1727287374518,1.13795,2575.8,2575.6,0.38827]
[1727287374709,1.13795,2575.8,2575.5,0.38828]
[1727287375531,1.13795,2575.8,2575.6,0.38827]
[1727287376417,0.7497,2575.8,2575.7,0.38826]
[1727287376623,0.38821,2576.1,2575.8,0.38824]
[1727287376827,0.38821,2576.1,2575.7,0.8315]
[1727287377021,0.3882,2576.1,2575.7,1.66]
[1727287377217,4.43229,2576.2,2576.0,0.38821]
[1727287377513,4.43229,2576.2,2575.9,0.38822]
[1727287377714,4.0441,2576.2,2576.0,0.38821]
[1727287378225,0.38815,2576.5,2575.9,3.2078]
[1727287378523,0.38815,2576.5,2576.3,0.38816]
[1727287378524,0.38814,2576.5,2576.3,0.38816]
[1727287378722,1.5613,2576.7,2576.3,0.38816]
[1727287378921,0.38812,2576.6,2576.3,0.38816]
[1727287379126,1.94942,2576.7,2576.4,0.38815]
[1727287379325,0.38814,2576.6,2576.3,2.03346]
[1727287380025,0.38814,2576.5,2576.3,1.6453]
[1727287380227,2.00033973,2576.4,2576.3,2.03347]
[1727287380435,2.00033973,2576.4,2576.3,1.6453]
[1727287381132,2.00033973,2576.4,2576.3,2.03347]
[1727287381829,2.00033973,2576.4,2576.3,1.6453]
[1727287382041,2.00033973,2576.4,2575.8,3.2078]
[1727287382042,0.97043,2576.3,2575.8,3.2078]
[1727287382332,0.97043,2576.3,2575.6,2.01937]
[1727287382333,6.1829324,2576.1,2575.6,2.01937]
[1727287382521,2.3928524,2575.9,2575.6,2.01937]
[1727287382725,0.38825,2575.8,2575.6,2.01937]
[1727287383038,2.3928424,2575.9,2575.7,0.38825]
[1727287383234,2.0046124,2575.9,2575.6,2.01937]
[1727287383429,0.38825,2575.8,2575.6,2.01937]
[1727287383734,2.0046124,2575.9,2575.6,1.6311]
[1727287383735,0.38826,2575.7,2575.6,1.6311]
[1727287383931,2.3928624,2575.8,2575.6,1.17817]
[1727287384130,5.00932,2576.1,2575.3,0.8412]
[1727287384131,2.0046124,2575.7,2575.3,0.8412]
[1727287384329,3.2253724,2575.7,2575.5,0.38828]
[1727287384635,2.3929024,2575.6,2575.3,1.6311]
[1727287384828,2.3929024,2575.6,2575.3,2.01941]
[1727287384829,2.39212935,2575.6,2575.3,2.01941]
[1727287385026,2.39212935,2575.6,2575.4,0.3883]
[1727287385733,2.00383935,2575.6,2575.4,0.3883]
[1727287386241,2.00383935,2575.6,2575.3,2.01941]
[1727287386242,2.39211935,2575.6,2575.3,2.01941]
[1727287386431,2.39211935,2575.6,2575.4,0.3883]
[1727287386627,2.39211935,2575.6,2575.3,2.01941]
[1727287386942,2.39211935,2575.6,2575.4,0.3883]
[1727287387137,0.38828,2575.6,2575.4,0.3883]
[1727287387532,1.22077,2575.7,2575.4,0.3883]
[1727287388644,1.22077,2575.7,2575.0,0.38836]
[1727287388645,0.38833,2575.3,2575.0,0.38836]
[1727287388842,3.41831,2575.4,2575.1,0.38834]
[1727287389131,0.38831,2575.4,2575.1,0.38834]
[1727287389532,0.3883,2575.5,2575.2,0.38833]
[1727287389834,3.03,2575.6,2574.9,7.8414]
[1727287390034,0.3883,2575.4,2575.1,0.38834]
[1727287391832,0.3883,2575.5,2574.9,7.8414]
[1727287392028,0.38828,2575.6,2575.3,0.38831]
[1727287392228,0.38829,2575.5,2575.2,3.59612]
[1727287392534,0.38831,2575.4,2575.1,0.38834]
[1727287392728,1.22077,2575.7,2575.1,3.03]
[1727287392928,1.22077,2575.7,2575.5,0.38829]
[1727287393128,4.46623,2575.9,2575.7,0.38826]
[1727287393435,0.38822,2576.0,2575.7,3.03]
[1727287393734,0.38822,2576.0,2575.7,3.41825]
[1727287393935,0.7796,2576.1,2575.8,0.38824]
[1727287394134,0.38822,2576.0,2575.7,3.41825]
[1727287395041,0.7796,2576.1,2575.6,1.6845]
[1727287395338,2.00383935,2576.0,2575.6,2.07277]
[1727287395536,0.38823,2575.9,2575.6,2.07277]
[1727287395746,0.38825,2575.8,2575.6,2.07277]
[1727287395933,0.38825,2575.8,2575.6,1.6845]
[1727287396240,0.38823,2575.9,2575.6,2.07277]
[1727287396827,0.38825,2575.8,2575.6,1.6845]
[1727287397031,0.38827,2575.6,2575.3,0.38832]
[1727287397345,0.38825,2575.8,2575.5,0.38828]
[1727287397636,2.00383935,2575.8,2575.5,0.38828]
[1727287397834,2.00383935,2575.8,2575.6,0.38827]
[1727287398036,5.59987935,2575.9,2575.6,0.38826]
[1727287398238,5.21163935,2575.9,2575.6,0.38826]
[1727287398838,5.21163935,2575.9,2575.7,0.38825]
[1727287399337,5.21163935,2575.9,2575.6,3.03]
[1727287399338,3.2078,2575.9,2575.6,3.03]
[1727287399636,3.6735755,2576.1,2575.6,3.03]
[1727287399637,2.78343935,2576.1,2575.8,3.03]
[1727287399944,2.00383935,2576.1,2576.0,0.38821]
[1727287400644,2.00383935,2576.1,2575.8,3.03]
[1727287400826,2.00383935,2576.1,2575.9,0.38821]
[1727287401237,2.39203935,2576.1,2575.9,0.38821]
[1727287401840,2.39204935,2576.1,2575.9,0.38823]
[1727287402035,0.38823,2575.9,2575.7,1.6322]
[1727287402337,0.38824,2575.8,2575.7,1.6322]
[1727287402741,0.38824,2575.9,2575.7,1.21775]
[1727287403339,3.59602,2576.0,2575.8,0.38824]
[1727287403536,0.38823,2575.9,2575.7,1.21775]
[1727287404045,0.38823,2575.9,2575.7,0.8295]
[1727287404237,0.38823,2575.9,2575.7,1.21775]
[1727287404437,2.00383935,2576.2,2576.0,0.3882]
[1727287404642,5.59981935,2576.3,2576.1,0.38819]
[1727287404947,2.00383935,2576.5,2576.2,3.41818]
[1727287405134,2.39190935,2577.0,2576.4,3.03]
[1727287405334,2.39190935,2577.0,2576.3,1.75741]
[1727287405335,2.39190935,2577.0,2576.7,3.03]
[1727287405533,5.21163935,2577.1,2576.7,3.4181]
[1727287405730,0.38807,2577.0,2576.7,3.4181]
[1727287406340,2.00383935,2577.1,2576.9,0.38807]
[1727287406537,5.21163935,2577.4,2577.0,3.03]
[1727287406745,3.2078,2577.4,2577.0,3.03]
[1727287407045,3.2078,2577.4,2577.3,0.38802]
[1727287407236,3.2078,2577.4,2577.3,3.41802]
[1727287407430,3.2078,2577.4,2577.3,3.03]
[1727287407642,3.2078,2577.4,2577.2,0.38802]
[1727287408048,3.2078,2577.4,2577.1,3.41804]
[1727287408343,3.2078,2577.4,2577.1,0.38804]
[1727287408534,0.38802,2577.3,2577.0,0.38806]
[1727287408738,3.2078,2577.4,2576.9,1.6476]
[1727287408739,0.38803,2577.2,2576.9,2.03566]
[1727287408940,0.38803,2577.2,2576.9,0.8508]
[1727287409141,0.38803,2577.3,2577.0,0.38806]
[1727287410435,3.59581,2577.4,2577.1,0.38805]
[1727287410634,3.2078,2577.4,2577.2,0.38802]
[1727287410839,3.2078,2577.4,2576.9,0.8508]
[1727287410840,1.6585,2577.6,2577.4,0.38799]
[1727287411039,0.38796,2577.7,2577.4,0.38799]
[1727287411235,0.38795,2577.8,2577.5,1.20938]
[1727287411438,1.20773,2577.9,2577.6,0.38797]
[1727287411950,3.2078,2578.0,2577.5,0.8214]
[1727287412341,3.59572,2578.0,2577.7,0.38795]
[1727287412538,3.2078,2578.0,2577.5,0.8214]
[1727287413051,3.59572,2578.0,2577.7,0.38795]
[1727287413943,1.6269,2578.1,2577.6,3.73]
[1727287414246,1.2038,2578.1,2577.7,3.2078]
[1727287414449,1.2038,2578.1,2577.7,4.39854]
[1727287414653,0.38789,2578.2,2577.8,0.38794]
[1727287414845,0.38789,2578.2,2577.9,0.38792]
[1727287415144,0.3879,2578.1,2577.8,0.38794]
[1727287416245,1.19886,2578.4,2577.9,3.73]
[1727287416446,1.23504,2578.5,2578.2,0.38788]
[1727287416644,0.8472,2578.5,2578.2,0.38788]
[1727287416839,1.23504,2578.5,2578.2,0.38788]
[1727287417045,1.23504,2578.5,2578.1,0.8237]
[1727287417046,0.8472,2578.5,2578.4,0.38785]
[1727287417257,1.49801196,2578.8,2578.6,0.38782]
[1727287417443,3.2078,2579.0,2578.4,3.73]
[1727287417750,3.2078,2579.0,2578.4,1.23424]
[1727287417751,0.38781,2578.7,2578.4,1.23424]
[1727287418141,4.70581196,2579.0,2578.3,3.2078]
[1727287418340,4.70581196,2579.0,2578.2,0.8498]
[1727287418341,0.38786,2578.4,2578.2,0.8498]
[1727287418541,0.96956,2578.6,2578.2,0.8498]
[1727287418738,0.38787,2578.3,2578.1,0.8237]
[1727287418950,0.38786,2578.4,2578.1,0.8237]
[1727287419350,0.819,2578.5,2578.3,0.38786]
[1727287419654,0.38784,2578.5,2578.2,0.8082]
[1727287419846,0.8018,2578.6,2578.2,0.8082]
[1727287420045,0.38784,2578.5,2578.2,1.19607]
[1727287420245,0.38784,2578.5,2578.2,0.8082]
[1727287420453,1.18963,2578.6,2578.3,0.38786]
[1727287420856,0.38784,2578.5,2578.3,0.38787]
[1727287421051,1.18963,2578.6,2578.4,0.38785]
[1727287421351,0.3878,2578.8,2578.6,0.38782]
[1727287422043,0.38779,2578.9,2578.6,0.38782]
[1727287422243,0.38779,2578.9,2578.3,3.2078]
[1727287422244,0.38779,2578.8,2578.7,0.7726]
[1727287422443,3.2078,2579.0,2578.7,0.7726]
[1727287422740,0.38779,2578.8,2578.7,0.7726]
[1727287423051,3.59557,2579.0,2578.7,1.16041]
[1727287423446,0.38778,2578.9,2578.7,1.16041]
[1727287423842,0.38778,2578.9,2578.7,0.7726]
[1727287424455,0.38779,2578.8,2578.7,0.7726]
[1727287425760,0.38778,2578.9,2578.7,0.7726]
[1727287426155,0.38778,2578.9,2578.7,1.16041]
[1727287426353,0.38778,2578.9,2578.7,0.7726]
[1727287426555,0.38779,2578.8,2578.7,0.7726]
[1727287427750,3.2078,2579.0,2578.7,0.7726]
[1727287428058,0.38777,2579.0,2578.8,0.38779]
[1727287428759,0.96934,2579.2,2578.7,8.5155]
[1727287429144,0.38778,2578.9,2578.7,8.9033]
[1727287429350,0.38778,2578.9,2578.7,5.6955]
[1727287429651,0.38779,2578.8,2578.7,1.5777]
[1727287430450,0.38779,2578.8,2578.7,4.6077]
[1727287431063,0.38779,2578.8,2578.7,4.99551]
[1727287431354,0.38779,2578.8,2578.7,4.6077]
[1727287431957,0.38779,2578.8,2578.7,4.99551]
[1727287433355,0.38779,2578.8,2578.7,4.99549]
[1727287435053,0.38778,2578.9,2578.7,4.6077]
[1727287435261,0.38778,2578.9,2578.8,3.41778]
[1727287435857,0.96939,2579.1,2578.8,3.03]
[1727287436064,0.96939,2579.1,2578.9,0.38777]
[1727287436065,0.38778,2579.0,2578.9,0.38777]
[1727287437163,0.38778,2579.0,2578.8,3.03]
[1727287437164,0.96939,2579.1,2578.8,3.03]
[1727287437460,0.38778,2578.9,2578.8,3.41779]
[1727287438558,0.38775,2579.1,2579.0,0.38775]
[1727287438763,0.38775,2579.1,2579.0,3.41776]
[1727287438965,0.38774,2579.2,2579.0,3.41776]
[1727287439859,3.59553,2579.3,2579.1,0.38775]
[1727287440161,3.59553,2579.3,2579.2,3.03]
[1727287440162,0.38772,2579.3,2579.2,3.03]
[1727287440360,1.99001,2579.4,2579.2,3.41773]
[1727287440754,0.38772,2579.3,2579.2,3.03]
[1727287440960,1.6023,2579.4,2579.2,3.03]
[1727287441161,1.99001,2579.4,2579.2,3.41773]
[1727287441957,0.38772,2579.3,2579.2,3.03]
[1727287442265,1.6023,2579.4,2579.2,3.03]
[1727287442768,0.38774,2579.2,2579.0,3.41775]
[1727287443166,1.6023,2579.4,2579.0,3.03]
[1727287443167,0.38775,2579.1,2579.0,3.03]
[1727287444069,0.38774,2579.2,2579.0,3.41776]
[1727287444269,0.38774,2579.2,2579.0,3.03]
[1727287444458,0.38774,2579.2,2579.1,0.38775]
[1727287444864,0.38774,2579.2,2579.0,3.41775]
[1727287445467,1.6023,2579.4,2579.2,0.38773]
[1727287445666,1.2308,2579.4,2579.3,1.5413]
[1727287445970,0.38769,2579.5,2579.3,1.92902]
[1727287446169,0.38769,2579.6,2579.4,3.4177]
[1727287446358,0.38767,2579.6,2579.4,3.4177]
[1727287446565,0.38769,2579.5,2579.4,3.03]
[1727287447162,4.0119,2579.7,2579.4,3.03]
[1727287447368,5.36872,2579.7,2579.6,3.03]
[1727287447666,0.38767,2579.6,2579.5,3.03]
[1727287448258,4.0119,2579.7,2579.6,0.38767]
[1727287448465,0.8041,2579.7,2579.6,3.41767]
[1727287448769,0.38765,2579.8,2579.6,3.41766]
[1727287449072,0.96904,2580.0,2579.6,3.41766]
[1727287449272,0.38764,2579.8,2579.6,0.38766]
[1727287449578,0.38763,2579.9,2579.8,3.03]
[1727287455869,3.88822454,2579.9,2579.8,3.03]
[1727287456068,7.09602454,2579.9,2579.6,3.03]
[1727287456275,7.09602454,2579.9,2579.4,3.03]
[1727287456276,0.38769,2579.5,2579.4,3.03]
[1727287456570,0.3877,2579.4,2579.3,3.825]
[1727287456766,3.38950682,2579.4,2579.3,3.03]
[1727287457163,0.3877,2579.4,2579.3,3.03]
[1727287458475,3.88829454,2579.4,2579.3,3.03]
[1727287459474,0.3877,2579.4,2579.3,3.03]
[1727287460567,4.35960379,2579.4,2579.3,3.03]
[1727287460779,0.3877,2579.4,2579.3,3.03]
[1727287460980,4.35960379,2579.5,2579.3,3.03]
[1727287461178,4.35959379,2579.5,2579.4,3.03]
[1727287461372,7.60296557,2579.5,2579.4,3.03]
[1727287461684,4.35959379,2579.5,2579.4,3.7868]
[1727287461876,4.35959379,2579.5,2579.4,4.5598]
[1727287462473,2.39611649,2579.5,2579.4,4.5598]
[1727287462976,0.38769,2579.5,2579.4,4.5598]
[1727287463369,1.35691,2579.5,2579.4,4.5598]
[1727287463574,0.3877,2579.4,2579.3,3.03]
[1727287463776,1.35696,2579.4,2579.3,3.03]
[1727287463980,1.35696,2579.4,2579.0,1.5472]
[1727287463981,0.38775,2579.1,2579.0,4.5772]
[1727287464287,1.89408328,2579.1,2579.0,4.5772]
[1727287464577,0.38775,2579.1,2579.0,4.5772]
[1727287465180,1.89408328,2579.1,2579.0,4.5772]
[1727287466186,1.89408328,2579.1,2579.0,4.96496]
[1727287467084,0.38775,2579.1,2579.0,4.96496]
[1727287467287,0.38775,2579.1,2579.0,4.5772]
[1727287467788,2.39619437,2579.1,2579.0,4.96496]
[1727287468488,2.39619437,2579.1,2579.0,4.5772]
[1727287468782,2.00844437,2579.1,2579.0,4.96496]
[1727287468986,2.00844437,2579.2,2579.1,0.38775]
[1727287469182,2.51053312,2579.3,2579.2,0.38773]
[1727287469183,2.00844437,2579.3,2579.2,0.38773]
[1727287469384,2.00844437,2579.3,2579.2,7.29453]
[1727287469584,3.01263974,2579.3,2579.2,7.29453]
[1727287469885,3.01263974,2579.4,2579.3,0.38772]
[1727287470385,3.40033974,2579.4,2579.3,0.38772]
[1727287470589,0.3877,2579.4,2579.3,0.38772]
[1727287470884,0.3877,2579.4,2579.1,3.03]
[1727287470885,0.38773,2579.2,2579.1,3.03]
[1727287471091,3.40244554,2579.2,2579.1,3.03]
[1727287471387,0.38773,2579.2,2579.1,3.03]
[1727287471594,1.35707,2579.2,2579.1,3.03]
[1727287471784,0.96941,2579.0,2578.7,3.03]
[1727287471982,3.01492547,2578.9,2578.8,0.38779]
[1727287472178,3.01492547,2579.0,2578.8,3.41779]
[1727287472480,3.40270547,2578.9,2578.8,3.03]
[1727287472697,0.38781,2578.7,2578.6,5.17751]
[1727287472987,0.38781,2578.7,2578.6,8.20751]
[1727287473288,0.3878,2578.8,2578.7,0.3878]
[1727287473490,0.3878,2578.8,2578.7,3.4178]
[1727287474290,3.40271547,2578.9,2578.8,0.38779]
[1727287474988,3.01492547,2578.9,2578.8,4.26539]
[1727287475195,0.38776,2579.0,2578.9,0.38778]
[1727287475382,0.38776,2579.0,2578.9,6.62558]
[1727287475583,0.38776,2579.0,2578.9,10.50318]
[1727287475778,0.38776,2579.0,2578.9,6.62558]
[1727287477495,3.01492547,2579.1,2579.0,0.38776]
[1727287477693,3.01492547,2579.1,2578.9,6.2378]
[1727287477694,2.01245598,2579.2,2579.1,0.38775]
[1727287477898,2.40019598,2579.2,2579.1,0.38775]
[1727287478085,0.38775,2579.1,2579.0,0.38775]
[1727287478295,2.40022605,2579.1,2579.0,3.41775]
[1727287478788,0.38775,2579.1,2579.0,3.41775]
[1727287479196,1.89712814,2579.1,2579.0,3.03]
[1727287479380,0.38775,2579.1,2579.0,3.41776]
[1727287480282,0.38775,2579.1,2579.0,3.03]
[1727287480483,2.71032605,2579.1,2579.0,3.03]
[1727287481788,2.20694923,2579.1,2579.0,3.03]
[1727287481989,0.69785,2579.1,2579.0,3.03]
[1727287482290,1.35728,2578.8,2578.7,3.03]
[1727287482693,2.39945894,2578.8,2578.7,3.03]
[1727287483995,3.36894894,2578.8,2578.7,3.03]